[Event "Navidad Barcelona IM1 2024"]
[Site "Barcelona"]
[Date "2024.12.26"]
[Round "1.1"]
[White "Garcia Ramos, Daniel"]
[Black "Garcia-Castany Musellas, Gal.la"]
[Result "1-0"]
[ECO "C16"]
[WhiteElo "2445"]
[BlackElo "2205"]
[Annotator "TA"]
[PlyCount "49"]
[EventDate "2024.12.26"]
[EventCountry "ESP"]
[SourceTitle "playchess.com"]
[Source "ChessBase"]
[SourceQuality "1"]
[TimeControl "5400+30"]

{[%evp 10,49,44,43,42,2,28,20,17,1,81,70,63,65,76,74,383,376,480,468,1006,997,1386,1384,1348,1293,2093,2042,1799,1334,1321,1330,1328,866,922,902,893,887,1103,1076,1652,1614]} 1. e4 {[%emt 1:31:00]} e6 {[%emt 1:31:00]} 2. d4 {[%emt 0:00:30]} d5 {[%emt 0:00:30]} 3. Nc3 {[%emt 0:00:30]} Bb4 {[%emt 0:00:30]} 4. e5 {[%emt 0:00:30]} b6 {[%emt 0:00:30]} 5. Qg4 {[%emt 0:00:30]} Bf8 {[%emt 0:00:30]} 6. Nf3 {[%emt 0:00:30]} Ne7 {[%emt 0:00:30]} 7. a4 {[%emt 0:00:30]} (7. Bg5 {with more complications.} Bb7 8. Bb5+ c6 9. Bd3) 7... Ba6 {[%emt 0:00:30]} 8. Nb5 {[%emt 0:00:30]} Qd7 {[%emt 0:00:30]} 9. b3 {[%emt 0:00:30]} Ng6 {[%emt 0:00:30]} (9... h5 $11 {remains equal.} 10. Qg5 Nf5) 10. h4 $16 {[%emt 0:00:30] White is much more active.} h5 {[%emt 0:00:30]} 11. Qg3 {[%emt 0:00:30]} Ne7 {[%emt 0:00:30]} 12. Bd3 {[%emt 0:00:30]} Nf5 $2 {[%emt 0:00:30][%mdl 8192]} (12... Nbc6 $16 {is more resistant.}) 13. Bxf5 $18 {[%emt 0:00:30]} exf5 {[%emt 0:00:30][%cal Be6f5,Bf5f4][%mdl 32]} 14. e6 {[%emt 0:00:30][%cal Be5e6,Be6f7][%mdl 32]} Qc6 {[%emt 0:00:30]} (14... Qxe6+ $142 15. Kd1 Qc8 (15... Bxb5 $2 16. Re1 $18) 16. Re1+ (16. Qxc7 Qxc7 17. Nxc7+ Kd7 $18) (16. Nxc7+ Kd7 $18) 16... Kd8) 15. Ne5 {[%emt 0:00:30]} Qxc2 {[%emt 0:00:30]} 16. O-O {[%emt 0:00:30]} Bxb5 {[%emt 0:00:30]} 17. axb5 {[%emt 0:00:30]} f4 {[%emt 0:00:30]} 18. exf7+ {[%emt 0:00:30]} Kd8 {[%emt 0:00:30]} 19. Qg5+ {[%emt 0:00:30]} Be7 {[%emt 0:00:30]} 20. Qxg7 {[%emt 0:00:30]} Qh7 {[%emt 0:00:30]} 21. Qxh7 {[%emt 0:00:30]} Rxh7 {[%emt 0:00:30] Black is weak on the light squares} 22. Bxf4 {[%emt 0:00:30]} Bd6 {[%emt 0:00:30]} 23. Rfe1 {[%emt 0:00:30]} Ke7 {[%emt 0:00:30]} 24. Nf3+ {[%emt 0:00:30]} Kf8 {[%emt 0:00:30]} 25. Bxd6+ {[%emt 0:00:30]} 1-0

[Event "Navidad Barcelona IM1 2024"]
[Site "Barcelona"]
[Date "2024.12.26"]
[Round "1.2"]
[White "Perez Perez, Gabriel"]
[Black "Martin Gonzalez, Angel"]
[Result "1-0"]
[ECO "B76"]
[WhiteElo "2201"]
[BlackElo "2197"]
[Annotator "RC"]
[PlyCount "59"]
[EventDate "2024.12.26"]
[EventCountry "ESP"]
[SourceTitle "playchess.com"]
[Source "ChessBase"]
[SourceQuality "1"]
[TimeControl "5400+30"]

1. e4 {[%emt 0:00:12]} c5 {[%emt 0:00:12]} 2. Nf3 {[%emt 0:00:17]} d6 {[%emt 0:00:49]} 3. d4 {[%emt 0:00:09]} cxd4 {[%emt 0:00:11]} 4. Nxd4 {[%emt 0:00:02]} Nf6 {[%emt 0:00:08]} 5. Nc3 {[%emt 0:00:10]} g6 {[%emt 0:00:23]} 6. Be3 {[%emt 0:00:11]} Bg7 {[%emt 0:00:09]} 7. f3 {[%emt 0:00:07]} Nc6 {[%emt 0:00:15]} 8. Qd2 {[%emt 0:00:34]} O-O {[%emt 0:00:17]} 9. O-O-O {[%emt 0:00:27]} d5 {[%emt 0:00:48]} 10. exd5 {[%emt 0:00:17]} Nxd5 {[%emt 0:00:11]} 11. Nxc6 {[%emt 0:00:05]} bxc6 {[%emt 0:00:09]} 12. Bd4 {[%emt 0:00:04]} e5 {[%emt 0:00:59]} 13. Bc5 {[%emt 0:00:04]} Be6 {[%emt 0:00:07]} 14. Ne4 {[%emt 0:00:21]} Re8 {[%emt 0:00:09]} 15. Bc4 {[%emt 0:14:18]} Qc7 {[%emt 0:12:04]} 16. Bd6 {[%emt 0:05:23]} Qb6 {[%emt 0:00:19]} 17. Bc5 {[%emt 0:00:17]} Qc7 {[%emt 0:00:16]} 18. Bb3 {[%emt 0:41:26]} Red8 {[%emt 0:19:15]} 19. Qf2 {[%emt 0:35:36]} Nf4 {[%emt 0:13:30]} 20. Bxe6 {[%emt 0:00:00]} Nxe6 {[%emt 0:00:44]} 21. Ba3 {[%emt 0:00:00]} f5 {[%emt 0:13:17]} 22. Rxd8+ {[%emt 0:00:00]} Rxd8 {[%emt 0:00:45]} 23. Nc5 {[%emt 0:02:00]} Qb6 {[%emt 0:05:58]} 24. Qh4 {[%emt 0:00:00]} g5 {[%emt 0:01:42]} 25. Qc4 {[%emt 0:00:00]} Rd5 {[%emt 0:00:34]} 26. Nxe6 {[%emt 0:00:00]} Qf2 {[%emt 0:01:03]} 27. Nc7 {[%emt 0:00:30]} Qd2+ {[%emt 0:03:51]} 28. Kb1 {[%emt 0:00:01]} Qxg2 {[%emt 0:00:08]} 29. Rc1 {[%emt 0:00:19]} Qxf3 {[%emt 0:01:08]} 30. Qxc6 {[%emt 0:01:24]} 1-0

[Event "Navidad Barcelona IM1 2024"]
[Site "Barcelona"]
[Date "2024.12.26"]
[Round "1.3"]
[White "Zrikem, Nassim"]
[Black "Munoz, Miguel"]
[Result "1/2-1/2"]
[ECO "B30"]
[WhiteElo "2204"]
[BlackElo "2325"]
[Annotator "RC"]
[PlyCount "28"]
[EventDate "2024.12.26"]
[EventCountry "ESP"]
[SourceTitle "playchess.com"]
[Source "ChessBase"]
[SourceQuality "1"]
[TimeControl "5400+30"]

1. e4 {[%emt 1:31:00]} c5 {[%emt 1:31:00]} 2. Nf3 {[%emt 0:00:30]} Nc6 {[%emt 0:00:30]} 3. Bb5 {[%emt 0:00:30]} Nf6 {[%emt 0:00:30]} 4. Qe2 {[%emt 0:00:30]} e5 {[%emt 0:00:30]} 5. Bxc6 {[%emt 0:00:30]} dxc6 {[%emt 0:00:30]} 6. d3 {[%emt 0:00:30]} Nd7 {[%emt 0:00:30]} 7. a4 {[%emt 0:00:30]} b6 {[%emt 0:00:30]} 8. Na3 {[%emt 0:00:30]} Be7 {[%emt 0:00:30]} 9. h4 {[%emt 0:00:30]} h5 {[%emt 0:00:30]} 10. Bg5 {[%emt 0:00:30]} f6 {[%emt 0:00:30]} 11. Be3 {[%emt 0:00:30]} Nf8 {[%emt 0:00:30]} 12. Rd1 {[%emt 0:00:30]} Bg4 {[%emt 0:00:30]} 13. c3 {[%emt 0:00:30]} Ne6 {[%emt 0:00:30]} 14. Nc2 {[%emt 0:00:30]} Qc7 {[%emt 0:00:30]} 1/2-1/2

[Event "Navidad Barcelona IM1 2024"]
[Site "Barcelona"]
[Date "2024.12.26"]
[Round "1.4"]
[White "Villar Reymundo, Juan Antonio"]
[Black "Uber Gracia, Hugo"]
[Result "1/2-1/2"]
[ECO "B29"]
[WhiteElo "2147"]
[BlackElo "2315"]
[Annotator "RC"]
[PlyCount "42"]
[EventDate "2024.12.26"]
[EventCountry "ESP"]
[SourceTitle "playchess.com"]
[Source "ChessBase"]
[SourceQuality "1"]
[TimeControl "5400+30"]

1. e4 {[%emt 0:09:22]} c5 {[%emt 0:00:10]} 2. Nf3 {[%emt 0:00:05]} Nf6 {[%emt 0:00:08]} 3. e5 {[%emt 0:00:12]} Nd5 {[%emt 0:00:06]} 4. g3 {[%emt 0:00:05]} e6 {[%emt 0:05:14]} 5. Bg2 {[%emt 0:00:18]} Nc6 {[%emt 0:04:14]} 6. O-O {[%emt 0:00:39]} d6 {[%emt 0:07:00]} 7. exd6 {[%emt 0:01:58]} Bxd6 {[%emt 0:00:20]} 8. Nc3 {[%emt 0:08:19]} Nxc3 {[%emt 0:13:04]} 9. dxc3 {[%emt 0:00:09]} h6 {[%emt 0:02:43]} 10. Be3 {[%emt 0:02:15]} O-O {[%emt 0:04:38]} 11. Nd2 {[%emt 0:01:32]} Be7 {[%emt 0:04:12]} 12. Qh5 {[%emt 0:04:18]} Qc7 {[%emt 0:16:47]} 13. Ne4 {[%emt 0:18:19]} b6 {[%emt 0:02:22]} 14. Bf4 {[%emt 0:06:39]} e5 {[%emt 0:04:20]} 15. Bxh6 {[%emt 0:00:55]} gxh6 {[%emt 0:02:32]} 16. Qxh6 {[%emt 0:00:33]} Be6 {[%emt 0:08:41]} 17. Ng5 {[%emt 0:07:41]} Bxg5 {[%emt 0:00:10]} 18. Qxg5+ {[%emt 0:00:04]} Kh7 {[%emt 0:00:05]} 19. Qh5+ {[%emt 0:31:54]} Kg7 {[%emt 0:00:02]} 20. Qg5+ {[%emt 0:00:10]} Kh7 {[%emt 0:00:03]} 21. Qh5+ {[%emt 0:02:26]} Kg7 {[%emt 0:00:06]} 1/2-1/2

[Event "Navidad Barcelona IM1 2024"]
[Site "Barcelona"]
[Date "2024.12.26"]
[Round "1.5"]
[White "Sviridenko, Yaroslav"]
[Black "Alcala Gonzalez, Cesar"]
[Result "1-0"]
[ECO "E20"]
[WhiteElo "2120"]
[BlackElo "2257"]
[Annotator "RC"]
[PlyCount "63"]
[EventDate "2024.12.26"]
[EventCountry "ESP"]
[SourceTitle "playchess.com"]
[Source "ChessBase"]
[SourceQuality "1"]
[TimeControl "5400+30"]

1. d4 {[%emt 0:00:08]} d5 {[%emt 0:01:17]} 2. c4 {[%emt 0:00:05]} e6 {[%emt 0:00:04]} 3. Nf3 {[%emt 0:00:06]} Nf6 {[%emt 0:01:12]} 4. g3 {[%emt 0:00:10]} Bb4+ {[%emt 0:04:34]} 5. Nc3 {[%emt 0:00:10]} O-O {[%emt 0:00:51]} 6. Bg2 {[%emt 0:00:10]} dxc4 {[%emt 0:00:50]} 7. O-O {[%emt 0:01:06]} Nc6 {[%emt 0:00:37]} 8. a3 {[%emt 0:00:17]} Be7 {[%emt 0:04:54]} 9. e4 {[%emt 0:00:15]} a6 {[%emt 0:05:52]} 10. Be3 {[%emt 0:00:37]} b5 {[%emt 0:00:52]} 11. Qc2 {[%emt 0:01:21]} Bb7 {[%emt 0:03:34]} 12. Rad1 {[%emt 0:02:24]} Na5 {[%emt 0:00:23]} 13. Rfe1 {[%emt 0:23:14]} Re8 {[%emt 0:06:02]} 14. d5 {[%emt 0:06:27]} exd5 {[%emt 0:02:03]} 15. e5 {[%emt 0:00:56]} Ng4 {[%emt 0:28:37]} 16. Bf4 {[%emt 0:03:51]} Bc5 {[%emt 0:00:35]} 17. Ng5 {[%emt 0:05:15]} g6 {[%emt 0:00:26]} 18. Bxd5 {[%emt 0:52:58]} Bxf2+ {[%emt 0:36:47]} 19. Qxf2 {[%emt 0:00:00]} Nxf2 {[%emt 0:00:00]} 20. Bxf7+ {[%emt 0:00:00]} Kg7 {[%emt 0:01:00]} 21. Kxf2 {[%emt 0:00:00]} Qe7 {[%emt 0:00:30]} 22. e6 {[%emt 0:00:00]} Red8 {[%emt 0:00:00]} 23. Be5+ {[%emt 0:02:30]} Kh6 24. Nge4 {[%emt 0:00:30]} Bxe4 {[%emt 0:00:00]} 25. Nxe4 {[%emt 0:00:00]} c6 {[%emt 0:00:00]} 26. Bf6 {[%emt 0:00:00]} Qa7+ {[%emt 0:00:00]} 27. Kg2 {[%emt 0:00:00]} Rxd1 28. Rxd1 {[%emt 0:00:00]} c3 {[%emt 0:02:09]} 29. Bg5+ {[%emt 0:00:39]} Kh5 {[%emt 0:01:51]} 30. h4 {[%emt 0:02:21]} Kg4 {[%emt 0:00:00]} 31. Rf1 {[%emt 0:00:00]} Qc7 {[%emt 0:00:00]} 32. Nf6# {[%emt 0:00:00]} 1-0

[Event "Navidad Barcelona IM1 2024"]
[Site "Barcelona"]
[Date "2024.12.27"]
[Round "2.1"]
[White "Garcia-Castany Musellas, Gal.la"]
[Black "Alcala Gonzalez, Cesar"]
[Result "1-0"]
[ECO "B13"]
[WhiteElo "2205"]
[BlackElo "2257"]
[Annotator "RC"]
[PlyCount "93"]
[EventDate "2024.12.26"]
[EventCountry "ESP"]
[SourceTitle "playchess.com"]
[Source "ChessBase"]
[SourceQuality "1"]
[TimeControl "5400+30"]

1. e4 {[%emt 1:31:00]} c6 {[%emt 1:31:00]} 2. c4 {[%emt 0:00:30]} d5 {[%emt 0:00:30]} 3. cxd5 {[%emt 0:00:30]} cxd5 {[%emt 0:00:30]} 4. exd5 {[%emt 0:00:30]} Nf6 {[%emt 0:00:30]} 5. Nc3 {[%emt 0:00:30]} Nxd5 {[%emt 0:00:30]} 6. Nf3 {[%emt 0:00:30]} Nc6 {[%emt 0:00:30]} 7. d4 {[%emt 0:00:30]} a6 {[%emt 0:00:30]} 8. Bc4 {[%emt 0:00:30]} Nxc3 {[%emt 0:00:30]} 9. bxc3 {[%emt 0:00:30]} Bf5 {[%emt 0:00:30]} 10. O-O {[%emt 0:00:30]} e6 {[%emt 0:00:30]} 11. a4 {[%emt 0:00:30]} Be7 {[%emt 0:00:30]} 12. Be3 {[%emt 0:00:30]} O-O {[%emt 0:00:30]} 13. Bd3 {[%emt 0:00:30]} Bxd3 {[%emt 0:00:30]} 14. Qxd3 {[%emt 0:00:30]} Rc8 {[%emt 0:00:30]} 15. Rfc1 {[%emt 0:00:30]} Qd7 {[%emt 0:00:30]} 16. c4 {[%emt 0:00:30]} Rfd8 {[%emt 0:00:30]} 17. Rab1 {[%emt 0:00:30]} Bf6 {[%emt 0:00:30]} 18. Qe4 {[%emt 0:00:30]} Bxd4 {[%emt 0:00:30]} 19. Rd1 {[%emt 0:00:30]} f5 {[%emt 0:00:30]} 20. Qc2 {[%emt 0:00:30]} e5 {[%emt 0:00:30]} 21. Nxe5 {[%emt 0:00:30]} Nxe5 22. Rxd4 {[%emt 0:00:30]} Qf7 {[%emt 0:01:00]} 23. c5 {[%emt 0:00:30]} Rxd4 {[%emt 0:00:30]} 24. Bxd4 Nc6 {[%emt 0:00:30]} 25. Ba1 {[%emt 0:01:00]} Rd8 {[%emt 0:00:30]} 26. h3 {[%emt 0:00:30]} Qd5 {[%emt 0:00:30]} 27. Qc3 {[%emt 0:00:30]} Rd7 {[%emt 0:00:30]} 28. Re1 {[%emt 0:00:30]} Nd4 {[%emt 0:00:30]} 29. Qe3 {[%emt 0:00:30]} Qe4 {[%emt 0:00:30]} 30. Qxe4 {[%emt 0:00:30]} fxe4 {[%emt 0:00:30]} 31. Rxe4 {[%emt 0:00:30]} Nb3 {[%emt 0:00:30]} 32. Bc3 {[%emt 0:00:30]} Nxc5 {[%emt 0:00:30]} 33. Rc4 {[%emt 0:00:30]} Rd5 {[%emt 0:00:30]} 34. f4 {[%emt 0:00:30]} b5 {[%emt 0:00:30]} 35. axb5 {[%emt 0:00:30]} axb5 {[%emt 0:00:30]} 36. Rb4 {[%emt 0:00:30]} Nd3 {[%emt 0:00:30]} 37. Re4 {[%emt 0:00:30]} Rc5 {[%emt 0:00:30]} 38. Bd4 {[%emt 0:00:30]} Rc1+ {[%emt 0:00:30]} 39. Kh2 {[%emt 0:00:30]} Rc4 {[%emt 0:00:30]} 40. f5 {[%emt 0:00:30]} Kf7 {[%emt 0:00:30]} 41. Rg4 {[%emt 0:00:30]} g6 {[%emt 0:00:30]} 42. f6 {[%emt 0:00:30]} b4 {[%emt 0:00:30]} 43. Re4 {[%emt 0:00:30]} b3 {[%emt 0:00:30]} 44. Re7+ {[%emt 0:00:30]} Kf8 {[%emt 0:00:30]} 45. Be3 {[%emt 0:00:30]} Nf4 {[%emt 0:00:30]} 46. Rb7 {[%emt 0:00:30]} Re4 {[%emt 0:00:30]} 47. Bc5+ {[%emt 0:00:30]} 1-0

[Event "Navidad Barcelona IM1 2024"]
[Site "Barcelona"]
[Date "2024.12.27"]
[Round "2.2"]
[White "Uber Gracia, Hugo"]
[Black "Sviridenko, Yaroslav"]
[Result "1-0"]
[ECO "A21"]
[WhiteElo "2315"]
[BlackElo "2120"]
[Annotator "RC"]
[PlyCount "71"]
[EventDate "2024.12.26"]
[EventCountry "ESP"]
[SourceTitle "playchess.com"]
[Source "ChessBase"]
[SourceQuality "1"]
[TimeControl "5400+30"]

1. c4 {[%emt 1:31:00]} e5 {[%emt 0:00:11]} 2. Nc3 {[%emt 0:00:00]} Bb4 {[%emt 0:00:32]} 3. Nd5 {[%emt 0:00:00]} Be7 {[%emt 0:00:08]} 4. d4 {[%emt 0:00:00]} exd4 {[%emt 0:00:13]} 5. Qxd4 {[%emt 0:00:00]} Nf6 {[%emt 0:00:13]} 6. Nxe7 {[%emt 0:00:00]} Qxe7 {[%emt 0:00:09]} 7. Bg5 {[%emt 0:00:00]} Nc6 {[%emt 0:00:14]} 8. Qc3 {[%emt 0:00:00]} d6 {[%emt 0:00:12]} 9. Nf3 {[%emt 0:00:00]} Be6 {[%emt 0:00:43]} 10. e3 {[%emt 0:00:00]} Rg8 {[%emt 1:32:55]} 11. Bd3 {[%emt 0:00:00]} h6 {[%emt 0:00:00]} 12. Bh4 {[%emt 0:00:00]} g5 {[%emt 0:00:00]} 13. Bg3 {[%emt 0:00:00]} O-O-O {[%emt 0:00:00]} 14. O-O-O {[%emt 0:00:00]} Nd7 {[%emt 0:00:00]} 15. Nd4 {[%emt 0:00:00]} Nce5 {[%emt 0:00:00]} 16. Be2 {[%emt 0:00:00]} Kb8 {[%emt 0:00:00]} 17. f4 {[%emt 0:00:00]} Nc6 {[%emt 0:00:00]} 18. Nxc6+ {[%emt 0:00:00]} bxc6 {[%emt 0:00:00]} 19. Bf3 {[%emt 0:00:00]} Nb6 {[%emt 0:00:00]} 20. Bxc6 {[%emt 0:00:00]} Bxc4 {[%emt 0:00:00]} 21. a4 {[%emt 0:00:00]} a5 {[%emt 0:00:00]} 22. Rhe1 {[%emt 0:00:00]} d5 {[%emt 0:00:00]} 23. Qxa5 {[%emt 0:00:00]} Rg6 {[%emt 0:00:00]} 24. Bb5 {[%emt 0:00:00]} gxf4 {[%emt 0:00:00]} 25. exf4 {[%emt 0:00:00]} Qc5 {[%emt 0:00:00]} 26. Qc3 {[%emt 0:00:00]} d4 {[%emt 0:00:00]} 27. Bf2 {[%emt 0:00:00]} Rgd6 {[%emt 0:00:00]} 28. Qc2 {[%emt 0:02:44]} Qb4 {[%emt 0:00:00]} 29. Bxc4 {[%emt 0:00:04]} Nxc4 {[%emt 0:00:00]} 30. Rd3 {[%emt 0:00:09]} Na5 {[%emt 0:00:45]} 31. Re5 {[%emt 0:05:02]} Rd5 {[%emt 0:06:07]} 32. Be1 {[%emt 0:00:42]} Qb6 {[%emt 0:00:40]} 33. Bxa5 {[%emt 0:00:24]} Qxa5 {[%emt 0:00:38]} 34. Rxd4 {[%emt 0:00:17]} Qc5 {[%emt 0:01:22]} 35. Rdxd5 {[%emt 0:00:36]} Rxd5 {[%emt 0:00:37]} 36. Qxc5 {[%emt 0:00:08]} 1-0

[Event "Navidad Barcelona IM1 2024"]
[Site "Barcelona"]
[Date "2024.12.27"]
[Round "2.3"]
[White "Munoz, Miguel"]
[Black "Villar Reymundo, Juan Antonio"]
[Result "1-0"]
[ECO "B11"]
[WhiteElo "2325"]
[BlackElo "2147"]
[Annotator "RC"]
[PlyCount "83"]
[EventDate "2024.12.26"]
[EventCountry "ESP"]
[SourceTitle "playchess.com"]
[Source "ChessBase"]
[SourceQuality "1"]
[TimeControl "5400+30"]

1. e4 {[%emt 1:31:00]} c6 {[%emt 1:31:00]} 2. Nc3 {[%emt 0:00:30]} g6 {[%emt 0:00:30]} 3. g3 {[%emt 0:00:30]} Bg7 {[%emt 0:00:30]} 4. Bg2 {[%emt 0:00:30]} c5 {[%emt 0:00:30]} 5. d3 {[%emt 0:00:30]} Nc6 {[%emt 0:00:30]} 6. f4 {[%emt 0:00:30]} d6 {[%emt 0:00:30]} 7. Nf3 {[%emt 0:00:30]} e6 {[%emt 0:00:30]} 8. Be3 {[%emt 0:00:30]} Nge7 {[%emt 0:00:30]} 9. Qd2 {[%emt 0:00:30]} Nd4 {[%emt 0:00:30]} 10. Nd1 {[%emt 0:00:30]} Qc7 {[%emt 0:00:30]} 11. O-O {[%emt 0:00:30]} O-O {[%emt 0:00:30]} 12. Nh4 {[%emt 0:00:30]} f5 {[%emt 0:00:30]} 13. c3 {[%emt 0:00:30]} Ndc6 {[%emt 0:00:30]} 14. Rc1 {[%emt 0:00:30]} b6 {[%emt 0:00:30]} 15. Nf2 {[%emt 0:00:30]} Ba6 {[%emt 0:00:30]} 16. Rfe1 {[%emt 0:00:30]} d5 {[%emt 0:00:30]} 17. e5 {[%emt 0:00:30]} Rac8 {[%emt 0:00:30]} 18. d4 {[%emt 0:00:30]} Na5 {[%emt 0:00:30]} 19. b3 {[%emt 0:00:30]} c4 {[%emt 0:00:30]} 20. b4 {[%emt 0:00:30]} Nac6 {[%emt 0:00:30]} 21. a4 {[%emt 0:00:30]} Bb7 {[%emt 0:00:30]} 22. Nf3 {[%emt 0:00:30]} a5 {[%emt 0:00:30]} 23. b5 {[%emt 0:00:30]} Nd8 {[%emt 0:00:30]} 24. h3 {[%emt 0:00:30]} Nf7 {[%emt 0:00:30]} 25. g4 {[%emt 0:00:30]} Nh6 {[%emt 0:00:30]} 26. Kh1 {[%emt 0:00:30]} Rcd8 {[%emt 0:00:30]} 27. Rg1 {[%emt 0:00:30]} Bc8 {[%emt 0:00:30]} 28. Bf1 {[%emt 0:00:30]} Kh8 {[%emt 0:00:30]} 29. Be2 {[%emt 0:00:30]} Bd7 {[%emt 0:00:30]} 30. Rg2 {[%emt 0:00:30]} Be8 {[%emt 0:00:30]} 31. Rcg1 {[%emt 0:00:30]} Bf7 {[%emt 0:00:30]} 32. Bd1 {[%emt 0:00:30]} Bg8 {[%emt 0:00:30]} 33. Bc2 {[%emt 0:00:30]} Qd7 {[%emt 0:00:30]} 34. Qe1 {[%emt 0:00:30]} Nc8 {[%emt 0:00:30]} 35. Nd1 {[%emt 0:00:30]} Rde8 {[%emt 0:00:30]} 36. Bc1 {[%emt 0:00:30]} Qe7 {[%emt 0:00:30]} 37. Nh4 {[%emt 0:00:30]} Bf7 {[%emt 0:00:30]} 38. Ne3 {[%emt 0:00:30]} Rd8 {[%emt 0:00:30]} 39. gxf5 {[%emt 0:00:30]} exf5 {[%emt 0:00:30]} 40. Nexf5 {[%emt 0:00:30]} Nxf5 {[%emt 0:00:30]} 41. Nxf5 {[%emt 0:00:30]} Qd7 {[%emt 0:00:30]} 42. Qh4 {[%emt 0:00:30]} 1-0

[Event "Navidad Barcelona IM1 2024"]
[Site "Barcelona"]
[Date "2024.12.27"]
[Round "2.4"]
[White "Martin Gonzalez, Angel"]
[Black "Zrikem, Nassim"]
[Result "0-1"]
[ECO "C90"]
[WhiteElo "2197"]
[BlackElo "2204"]
[Annotator "RC"]
[PlyCount "100"]
[EventDate "2024.12.26"]
[EventCountry "ESP"]
[SourceTitle "playchess.com"]
[Source "ChessBase"]
[SourceQuality "1"]
[TimeControl "5400+30"]

1. e4 {[%emt 0:00:03]} e5 {[%emt 0:00:17]} 2. Nf3 {[%emt 0:00:12]} Nc6 {[%emt 0:00:34]} 3. Bb5 {[%emt 0:00:08]} a6 {[%emt 0:00:10]} 4. Ba4 {[%emt 0:00:10]} Nf6 {[%emt 0:00:08]} 5. O-O {[%emt 0:00:08]} Be7 {[%emt 0:00:42]} 6. Re1 {[%emt 0:00:14]} b5 {[%emt 0:00:47]} 7. Bb3 {[%emt 0:00:07]} d6 {[%emt 0:00:24]} 8. c3 {[%emt 0:00:11]} O-O {[%emt 0:00:52]} 9. a4 {[%emt 0:00:26]} Bd7 {[%emt 0:06:42]} 10. d4 {[%emt 1:33:51]} Bg4 {[%emt 0:04:12]} 11. d5 {[%emt 0:00:00]} Na5 {[%emt 0:05:59]} 12. Bc2 {[%emt 0:00:00]} Qd7 {[%emt 0:08:08]} 13. Nbd2 {[%emt 0:00:00]} c6 {[%emt 0:04:11]} 14. h3 {[%emt 0:00:00]} Bh5 {[%emt 0:01:19]} 15. dxc6 {[%emt 0:00:00]} Qxc6 {[%emt 0:00:42]} 16. Nf1 {[%emt 0:00:00]} Nc4 {[%emt 0:09:40]} 17. a5 {[%emt 0:00:00]} Qc7 {[%emt 0:04:53]} 18. b4 {[%emt 0:00:00]} Rfd8 {[%emt 0:04:09]} 19. Ng3 {[%emt 0:00:00]} Bg6 {[%emt 0:01:28]} 20. Nh4 {[%emt 0:00:00]} d5 {[%emt 0:05:14]} 21. Nxg6 {[%emt 0:00:00]} hxg6 {[%emt 0:00:13]} 22. exd5 {[%emt 0:00:00]} Nxd5 {[%emt 0:05:00]} 23. Qf3 {[%emt 0:00:00]} f5 {[%emt 0:08:30]} 24. Rb1 {[%emt 0:00:00]} Bf6 {[%emt 0:05:35]} 25. Ne4 {[%emt 0:00:00]} fxe4 {[%emt 0:05:59]} 26. Bxe4 {[%emt 0:00:00]} Qf7 {[%emt 0:02:09]} 27. Rd1 {[%emt 0:00:00]} Nc7 {[%emt 0:06:19]} 28. Bxa8 {[%emt 0:00:00]} Rxd1+ {[%emt 0:01:20]} 29. Qxd1 {[%emt 0:00:00]} Nxa8 {[%emt 0:00:09]} 30. Qg4 {[%emt 0:00:00]} Qe7 {[%emt 0:07:50]} 31. Be3 {[%emt 0:00:00]} Nxe3 {[%emt 0:00:25]} 32. fxe3 {[%emt 0:00:00]} Nc7 {[%emt 0:00:40]} 33. Rd1 {[%emt 0:00:00]} Ne6 {[%emt 0:00:41]} 34. Qxg6 {[%emt 0:00:00]} Qc7 {[%emt 0:00:56]} 35. Qe4 {[%emt 0:02:28]} Kf7 {[%emt 0:00:53]} 36. Rd3 {[%emt 0:03:56]} Ke7 {[%emt 0:00:13]} 37. Qa8 {[%emt 0:00:12]} e4 {[%emt 0:00:11]} 38. Qxe4 {[%emt 0:00:22]} Bxc3 {[%emt 0:00:10]} 39. Rd5 {[%emt 0:01:06]} Qc6 {[%emt 0:01:31]} 40. h4 {[%emt 0:01:40]} Be1 {[%emt 0:00:38]} 41. Kf1 {[%emt 0:04:24]} Qc1 {[%emt 0:00:19]} 42. Ke2 {[%emt 0:00:27]} Bc3 {[%emt 0:00:32]} 43. Rc5 {[%emt 0:01:22]} Qd2+ {[%emt 0:00:36]} 44. Kf3 {[%emt 0:00:02]} Qd1+ {[%emt 0:00:04]} 45. Kg3 {[%emt 0:00:24]} Qd6+ {[%emt 0:00:02]} 46. Kg4 {[%emt 0:00:50]} Bxb4 {[%emt 0:00:08]} 47. Re5 {[%emt 0:00:31]} Bxa5 {[%emt 0:00:40]} 48. Kf5 {[%emt 0:00:22]} Kf7 {[%emt 0:00:53]} 49. h5 {[%emt 0:00:39]} Nc5 {[%emt 0:00:53]} 50. Rd5 {[%emt 0:00:30]} Nxe4 {[%emt 0:00:15]} 0-1

[Event "Navidad Barcelona IM1 2024"]
[Site "Barcelona"]
[Date "2024.12.27"]
[Round "2.5"]
[White "Garcia Ramos, Daniel"]
[Black "Perez Perez, Gabriel"]
[Result "1/2-1/2"]
[ECO "C54"]
[WhiteElo "2445"]
[BlackElo "2201"]
[Annotator "TA"]
[PlyCount "32"]
[EventDate "2024.12.26"]
[EventCountry "ESP"]
[SourceTitle "playchess.com"]
[Source "ChessBase"]
[SourceQuality "1"]
[TimeControl "5400+30"]

{[%evp 11,32,16,21,21,29,16,27,22,32,14,-8,1,45,9,18,-31,19,-86,-79,-80,-93,-104,-83]} 1. e4 {[%emt 0:01:18]} e5 {[%emt 0:00:21]} 2. Nf3 {[%emt 0:00:09]} Nc6 {[%emt 0:00:03]} 3. Bc4 {[%emt 0:03:22]} Nf6 {[%emt 0:00:39]} 4. d3 {[%emt 0:00:46]} Bc5 {[%emt 0:00:09]} 5. O-O {[%emt 1:27:25]} d6 {[%emt 0:00:33]} 6. c3 {[%emt 0:00:00]} a6 {[%emt 0:00:24]} 7. a4 {[%emt 0:00:00]} Ba7 {[%emt 0:07:48]} 8. Nbd2 {[%emt 0:00:00]} h6 {[%emt 0:00:32]} 9. Re1 {[%emt 0:00:00]} Nh7 {[%emt 0:04:21]} 10. b4 {[%emt 0:00:00]} Qf6 {[%emt 0:08:15]} 11. d4 {[%emt 0:00:00]} g5 {[%emt 0:02:31][%cal Bg7g5,Bg5g4][%mdl 32]} 12. dxe5 {[%emt 0:00:00]} dxe5 {[%emt 0:17:03] and ...g4 would now be decisive} 13. Kh1 {[%emt 0:00:00]} (13. Rf1 $11) 13... h5 {[%emt 0:07:39]} (13... Bxf2 $2 {perishes.} 14. Rf1 $18) ({Better is} 13... g4 $15 14. Ng1 h5 (14... Bxf2 15. Rf1 $16)) 14. Nf1 {[%emt 0:00:00]} (14. Rf1 $11) 14... g4 $1 $17 {[%emt 0:08:08]} ({But not} 14... Bxf2 $6 15. Re2 Ba7 16. Be3 $11) 15. Ng1 {[%emt 0:00:00]} Bxf2 {[%emt 0:00:39]} 16. Re2 {[%emt 0:00:00]} Be6 {[%emt 0:03:00]} 1/2-1/2